fUST/lending_fUST_20260101
["ID","MTS","AMOUNT","RATE_DAILY","PERIOD"]
[400229987,1767207045357,-270.657289,0.00027722,7]
[400229988,1767207045367,-151.0,0.00027722,7]
[400229989,1767207045376,-351.647028,0.00027722,7]
[400229990,1767207045386,-351.647028,0.00027722,7]
[400229991,1767207045396,-151.0,0.00027722,7]
[400229992,1767207045406,-351.647028,0.00027722,7]
[400229993,1767207045417,-315.210295,0.00027722,7]
[400229994,1767207045427,-315.210295,0.00027722,7]
[400229995,1767207045436,-315.210295,0.00027722,7]
[400229996,1767207045446,-315.210295,0.00027722,7]
[400229997,1767207045455,-1087.238041,0.00027722,7]
[400229998,1767207045465,-1087.238041,0.00027722,7]
[400229999,1767207045474,-1087.238041,0.00027722,7]
[400230000,1767207045484,-1087.238041,0.00027722,7]
[400230001,1767207045494,-579.465896,0.00027722,7]
[400230002,1767207045505,-579.465896,0.00027722,7]
[400230003,1767207045515,-579.465896,0.00027722,7]
[400230004,1767207045524,-579.465896,0.00027722,7]
[400230005,1767207045533,-414.72566,0.00027722,7]
[400230006,1767207045543,-414.72566,0.00027722,7]
[400230008,1767207045553,-414.72566,0.00027722,7]
[400230010,1767207045562,-414.72566,0.00027722,7]
[400230011,1767207045572,-2000.0,0.0002773,7]
[400230012,1767207045581,-2000.0,0.00027739,7]
[400230013,1767207045591,-2000.0,0.00027748,7]
[400230015,1767207045603,-2000.0,0.00027757,7]
[400230016,1767207045613,-2000.0,0.00027766,7]
[400230017,1767207045623,-2000.0,0.00027774,7]
[400230018,1767207045632,-2000.0,0.00027783,7]
[400230019,1767207045641,-2000.0,0.00027792,7]
[400230020,1767207045650,-2000.0,0.00027801,7]
[400230022,1767207045661,-2000.0,0.0002781,7]
[400230023,1767207045671,-2000.0,0.00027818,7]
[400230024,1767207045680,-2000.0,0.00027827,7]
[400230025,1767207045689,-2000.0,0.00027836,7]
[400230026,1767207045699,-2000.0,0.00027845,7]
[400230027,1767207045708,-2000.0,0.00027854,7]
[400230028,1767207045717,-906.127244,0.00027862,7]
[400230029,1767207045726,-906.127244,0.00027862,7]
[400230030,1767207045735,-906.127244,0.00027862,7]
[400230031,1767207045744,-151.0,0.00027862,7]
[400230032,1767207045753,-906.127244,0.00027862,7]
[400230033,1767207045762,-151.0,0.00027862,7]
[400230034,1767207045772,-151.0,0.00027862,7]
[400230035,1767207045782,-151.0,0.00027862,7]
[400230036,1767207045791,-151.0,0.00027862,7]
[400230037,1767207045801,-151.278502,0.00027862,7]
[400230038,1767207045811,-151.0,0.00027862,7]
[400230039,1767207045820,-151.0,0.00027862,7]
[400230040,1767207045829,-151.0,0.00027862,7]
[400230041,1767207045839,-151.0,0.00027862,7]
[400230042,1767207045848,-151.0,0.00027862,7]
[400230043,1767207045858,-193.357014,0.00027862,7]
[400230044,1767207045868,-151.0,0.00027862,7]
[400230045,1767207045877,-193.357014,0.00027862,7]
[400230046,1767207045890,-170.594651,0.00027862,7]
[400230047,1767207045899,-193.357014,0.00027862,7]
[400230048,1767207045909,-193.357014,0.00027862,7]
[400230049,1767207045920,-151.0,0.00027862,7]
[400230050,1767207045932,-151.0,0.00027862,7]
[400230051,1767207045942,-2000.0,0.00027862,7]
[400230052,1767207045951,-2000.0,0.00027871,7]
[400230053,1767207045962,-200.54705607,0.00027944,18]
[400230054,1767207045972,-610.26,0.00027945,2]
[400230055,1767207045982,-1371.98,0.00027945,2]
[400230056,1767207045992,-1196.44,0.00027945,2]
[400230057,1767207046001,-151.0,0.00027945,7]
[400230058,1767207046011,-151.0,0.00027945,7]
[400230059,1767207046020,-151.0,0.00027945,7]
[400230060,1767207046029,-153.744785,0.00027945,7]
[400230061,1767207046038,-153.744785,0.00027945,7]
[400230062,1767207046047,-151.0,0.00027945,7]
[400230063,1767207046056,-153.744785,0.00027945,7]
[400230064,1767207046065,-153.744785,0.00027945,7]
[400230065,1767207046075,-151.0,0.00027945,7]
[400230066,1767207046084,-508.03,0.00027945,2]
[400230067,1767207046094,-5713.32,0.00027945,2]
[400230068,1767207046103,-874.95,0.00027945,2]
[400230069,1767207046113,-2265.65,0.00027945,2]
[400230070,1767207046123,-9696.43,0.00027945,2]
[400230071,1767207046133,-524.16,0.00027945,2]
[400230072,1767207046143,-679.28,0.00027945,2]
[400230073,1767207046152,-580.59,0.00027945,2]
[400230074,1767207046162,-651.97,0.00027945,2]
[400230075,1767207046171,-546.52,0.00027945,2]
[400230076,1767207046180,-152.36606131,0.00027945,5]
[400230077,1767207046190,-160.0,0.00027991,3]
[400230078,1767207046199,-1041.66666667,0.00028,7]
[400230079,1767207046209,-239.6,0.00028171,3]
[400230080,1767207046218,-1000.0,0.00028179,2]
[400230081,1767207046228,-1000.0,0.00028179,2]
[400230082,1767207046237,-1000.0,0.00028179,2]
[400230083,1767207046247,-1000.0,0.00028179,2]
[400230084,1767207046257,-1000.0,0.00028179,2]
[400230085,1767207046266,-1000.0,0.00028179,2]
[400230086,1767207046275,-1000.0,0.00028179,2]
[400230087,1767207046378,-1000.0,0.00028179,2]
[400230088,1767207046388,-1000.0,0.00028179,2]
[400230089,1767207046399,-1000.0,0.00028179,2]
[400230090,1767207046409,-1000.0,0.00028179,2]
[400230091,1767207046420,-1000.0,0.00028179,2]
[400230092,1767207046429,-1000.0,0.00028179,2]
[400230093,1767207046439,-1000.0,0.00028179,2]
[400230094,1767207046448,-1000.0,0.00028179,2]
[400230095,1767207046458,-1000.0,0.00028179,2]
[400230096,1767207046467,-1000.0,0.00028179,2]
[400230097,1767207046476,-1000.0,0.00028179,2]
[400230098,1767207046487,-1000.0,0.00028179,2]
[400230099,1767207046496,-753.63980958,0.00028179,2]
[400230100,1767207046506,-610.31743685,0.00028219,2]
[400230101,1767207046516,-1372.21635778,0.00028219,2]
[400230102,1767207046526,-1196.45900291,0.00028219,2]
[400230103,1767207046536,-508.23,0.00028219,2]
[400230104,1767207046546,-5713.35751312,0.00028219,2]
[400230105,1767207046556,-875.15395132,0.00028219,2]
[400230106,1767207046566,-2265.67,0.00028219,2]
[400230107,1767207046576,-9696.53097059,0.00028219,2]
[400230108,1767207046586,-524.3569689,0.00028219,2]
[400230109,1767207046596,-679.32268095,0.00028219,2]
[400230110,1767207046605,-580.67895572,0.00028219,2]
[400230111,1767207046615,-652.03,0.00028219,2]
[400230112,1767207046625,-546.6174778,0.00028219,2]
[400230113,1767207046637,-179.85611511,0.00028359,2]
[400230114,1767207046647,-160.0,0.00028514,4]
[400230115,1767207046656,-3147.76375777,0.00028517,2]
[400230116,1767207046667,-901.94098843,0.00028578,2]
[400230117,1767207046676,-555.89,0.00028637,30]
[400230118,1767207046686,-208.32,0.000287,2]
[400230119,1767207046696,-337.601553,0.00028767,60]
[400230120,1767207046706,-1041.66666667,0.000288,7]
[400230121,1767207046716,-168.0,0.00028934,2]
[400230122,1767207046726,-5000.0,0.00028999,3]
[400230123,1767207046735,-160.0,0.00029036,5]
[400230124,1767207046745,-200.54705607,0.00029039,20]
[400230125,1767207046754,-168.0,0.00029115,7]
[400230126,1767207046764,-168.0,0.00029129,2]
[400230127,1767207046773,-165.22,0.000292,7]
[400230128,1767207046782,-159.87,0.000292,7]
[400230129,1767207046792,-168.0,0.0002924,2]
[400230130,1767207046801,-2000.0,0.00029348,7]
[400230131,1767207046811,-168.0,0.00029493,2]
[400230132,1767207046821,-1324.78,0.000295,14]
[400230133,1767207046830,-12143.98,0.000295,2]
[400230134,1767207046841,-160.0,0.00029559,6]
[400230135,1767207046851,-1266.6604661,0.00029574,2]
[400230136,1767207046860,-3147.76375777,0.00029596,2]
[400230137,1767207046870,-180.0,0.00029699,36]
[400230138,1767207046881,-1041.66666667,0.000297,7]
[400230139,1767207046893,-168.0,0.00029828,2]
[400230140,1767207046903,-5000.0,0.00029968,4]
[400230141,1767207046913,-239.6,0.00030017,4]
[400230142,1767207046924,-160.0,0.00030082,7]
[400230143,1767207046934,-5000.0,0.00030099,14]
[400230144,1767207046944,-208.32,0.000301,2]
[400230145,1767207046953,-200.54705607,0.00030135,21]
[400230146,1767207046963,-206.57119576,0.00030138,10]
[400230147,1767207046973,-168.0,0.00030166,2]
[400230148,1767207046982,-24425.5686256,0.000302,10]
[400230149,1767207046991,-500.0,0.00030381,7]
[400230150,1767207047002,-500.0,0.00030402,7]
[400230151,1767207047012,-1300.0,0.00030417,7]
[400230152,1767207047022,-168.0,0.00030424,2]
[400230153,1767207047032,-500.0,0.00030477,7]
[400230154,1767207047041,-168.0,0.00030485,7]
[400230155,1767207047051,-168.0,0.0003051,2]
[400230156,1767207047060,-1300.0,0.00030578,7]
[400230157,1767207047071,-968.47761872,0.00030578,2]
[400230158,1767207047080,-160.0,0.00030605,8]
[400230159,1767207047090,-1300.0,0.00030613,7]
[400230160,1767207047099,-274.0,0.00030618,2]
[400230161,1767207047108,-1300.0,0.00030659,7]
[400230162,1767207047118,-3147.76375777,0.00030676,2]
[400230163,1767207047128,-1300.0,0.00030754,7]
[400230164,1767207047138,-1300.0,0.00030791,7]
[400230165,1767207047147,-274.0,0.00030807,7]
[400230166,1767207047156,-1723.57972,0.00030809,2]
[400230167,1767207047167,-1300.0,0.00030842,7]
[400230168,1767207047177,-150.0,0.00030859,2]
[400230169,1767207047186,-416.0,0.00030859,2]
[400230170,1767207047195,-416.0,0.00030859,2]
[400230171,1767207047205,-627.0,0.00030859,2]
[400230172,1767207047215,-2156.0,0.00030859,2]
[400230173,1767207047224,-1364.0,0.00030859,2]
[400230174,1767207047234,-150.0,0.00030859,2]
[400230175,1767207047243,-150.0,0.00030859,2]
[400230176,1767207047253,-150.055,0.00030859,2]
[400230177,1767207047262,-150.142,0.00030859,2]
[400230178,1767207047272,-250.0,0.00030859,2]
[400230179,1767207047281,-151.0,0.00030859,31]
[400230180,1767207047291,-151.0,0.00030859,31]
[400230181,1767207047300,-254.893875,0.00030859,31]
[400230182,1767207047310,-151.0,0.00030859,31]
[400230183,1767207047319,-151.0,0.00030859,31]
[400230184,1767207047329,-151.0,0.00030859,31]
[400230185,1767207047338,-151.0,0.00030859,31]
[400230186,1767207047348,-151.0,0.00030859,31]
[400230187,1767207047357,-151.0,0.00030859,31]
[400230188,1767207047367,-151.0,0.00030859,31]
[400230189,1767207047377,-151.0,0.00030859,31]
[400230190,1767207047386,-1419.163026,0.00030859,31]
[400230191,1767207047395,-151.0,0.00030859,31]
[400230192,1767207047405,-1419.163026,0.00030859,31]
[400230193,1767207047416,-151.0,0.00030859,31]
[400230194,1767207047425,-151.0,0.00030859,31]
[400230195,1767207047435,-1419.163026,0.00030859,31]
[400230196,1767207047445,-1419.163026,0.00030859,31]
[400230197,1767207047454,-171.736498,0.00030859,31]
[400230198,1767207047464,-171.736498,0.00030859,31]
[400230199,1767207047473,-171.736498,0.00030859,31]
[400230200,1767207047483,-171.736498,0.00030859,31]
[400230201,1767207047492,-947.358642,0.00030859,31]
[400230202,1767207047502,-947.358642,0.00030859,31]
[400230203,1767207047511,-947.358642,0.00030859,31]
[400230204,1767207047521,-947.358642,0.00030859,31]
[400230205,1767207047532,-1300.0,0.00030878,7]
[400230206,1767207047542,-4948.49043632,0.00030878,2]
[400230207,1767207047551,-156.46,0.000309,7]
[400230208,1767207047561,-1300.0,0.00030901,7]
[400230209,1767207047570,-1300.0,0.00030943,7]
[400230210,1767207047579,-5000.0,0.00030954,2]
[400230211,1767207047589,-956.2,0.00030958,30]
[400230212,1767207047599,-1300.0,0.0003096,7]
[400230213,1767207047609,-12161.1407072,0.00030977,2]
[400230214,1767207047619,-9445.6068716,0.00030977,2]
[400230215,1767207047628,-1300.0,0.00030978,7]
[400230216,1767207047638,-200.76587943,0.00031,120]
[400230217,1767207047647,-200.60301447,0.00031,120]
[400230218,1767207047656,-193.78459303,0.00031,120]
[400230219,1767207047666,-178.86741209,0.00031,120]
[400230220,1767207047675,-161.0131865,0.00031,120]
[400230221,1767207047685,-198.07485529,0.00031,120]
[400230222,1767207047695,-216.44093065,0.00031,120]
[400230223,1767207047704,-162.37843674,0.00031,120]
[400230224,1767207047714,-183.42010434,0.00031,120]
[400230225,1767207047723,-183.49170094,0.00031,120]
[400230226,1767207047733,-1430.86618739,0.00031,120]
[400230227,1767207047743,-309.65070131,0.00031,120]
[400230228,1767207047752,-206.24088796,0.00031,120]
[400230229,1767207047762,-1041.66666667,0.00031,10]
[400230230,1767207047772,-500.0,0.00031059,7]
[400230231,1767207047781,-272.0,0.00031085,2]
[400230232,1767207047791,-1300.0,0.00031099,7]
[400230233,1767207047801,-272.0,0.00031107,7]
[400230234,1767207047811,-160.0,0.00031128,9]
[400230235,1767207047820,-168.0,0.00031149,2]
[400230236,1767207047831,-151.0,0.00031152,31]
[400230237,1767207047840,-198.827398,0.00031152,31]
[400230238,1767207047850,-151.0,0.00031152,31]
[400230239,1767207047859,-151.0,0.00031152,31]
[400230240,1767207047869,-151.0,0.00031152,31]
[400230241,1767207047879,-151.0,0.00031152,31]
[400230242,1767207047893,-151.0,0.00031152,31]
[400230243,1767207047903,-151.0,0.00031152,31]
[400230244,1767207047912,-151.0,0.00031152,31]
[400230245,1767207047923,-151.0,0.00031152,31]
[400230246,1767207047932,-301.76576,0.00031152,31]
[400230247,1767207047941,-151.0,0.00031152,31]
[400230248,1767207047951,-151.0,0.00031152,31]
[400230249,1767207047960,-158.892051,0.00031152,31]
[400230250,1767207047970,-158.892051,0.00031152,31]
[400230251,1767207047979,-158.892051,0.00031152,31]
[400230252,1767207047989,-158.892051,0.00031152,31]
[400230253,1767207047998,-151.0,0.00031152,31]
[400230254,1767207048007,-151.0,0.00031152,31]
[400230255,1767207048017,-151.0,0.00031152,31]
[400230256,1767207048026,-12143.98,0.000312,2]
[400230257,1767207048036,-1324.78,0.000312,14]
[400230258,1767207048045,-200.54705607,0.0003123,22]
[400230259,1767207048054,-1111.77,0.0003124,30]
[400230260,1767207048064,-168.0,0.00031241,2]
[400230261,1767207048073,-178.917895,0.00031241,31]
[400230262,1767207048082,-151.0,0.00031241,31]
[400230263,1767207048092,-151.0,0.00031241,31]
[400230264,1767207048102,-151.0,0.00031241,31]
[400230265,1767207048111,-151.0,0.00031241,31]
[400230266,1767207048121,-1300.0,0.00031397,7]
[400230267,1767207048130,-17787.0,0.00031447,30]
[400230268,1767207048140,-819.5,0.00031447,30]
[400230269,1767207048150,-1226.0,0.00031447,30]
[400230270,1767207048160,-500.0,0.00031454,7]
[400230271,1767207048170,-1300.0,0.00031462,7]
[400230272,1767207048179,-2000.0,0.00031478,7]
[400230273,1767207048189,-168.0,0.00031503,2]
[400230274,1767207048199,-956.2,0.00031506,31]
[400230275,1767207048208,-168.0,0.00031535,2]
[400230276,1767207048218,-1300.0,0.00031574,7]
[400230277,1767207048228,-1300.0,0.00031627,7]
[400230278,1767207048238,-160.0,0.00031651,10]
[400230279,1767207048247,-1300.0,0.00031652,7]
[400230280,1767207048257,-168.0,0.00031738,7]
[400230281,1767207048266,-3147.76375777,0.00031756,2]
[400230282,1767207048276,-1300.0,0.00031762,7]
[400230283,1767207048285,-239.6,0.00031863,5]
[400230284,1767207048295,-5000.0,0.00031889,15]
[400230285,1767207048305,-200.76587943,0.000319,120]
[400230286,1767207048314,-200.60301447,0.000319,120]
[400230287,1767207048324,-193.78459303,0.000319,120]
[400230288,1767207048334,-161.0131865,0.000319,120]
[400230289,1767207048343,-216.44093065,0.000319,120]
[400230290,1767207048353,-183.49170094,0.000319,120]
[400230291,1767207048362,-1430.86618739,0.000319,120]
[400230292,1767207048372,-1300.0,0.00031922,7]
[400230293,1767207048383,-168.0,0.00031925,2]
[400230294,1767207048393,-2713.5172736,0.0003197,2]
[400230295,1767207048402,-2107.5997739,0.0003197,2]
[400230296,1767207048412,-1300.0,0.00031989,7]
[400230297,1767207048422,-1017.21903832,0.00032,7]
[400230298,1767207048433,-1300.0,0.00032032,7]
[400230299,1767207048442,-5000.0,0.00032053,15]
[400230300,1767207048451,-956.2,0.00032054,32]
[400230301,1767207048463,-160.0,0.00032174,11]
[400230302,1767207048473,-1300.0,0.0003219,7]
[400230303,1767207048483,-165.22,0.000322,7]
[400230304,1767207048493,-159.87,0.000322,7]
[400230305,1767207048503,-1300.0,0.00032238,7]
[400230306,1767207048512,-272.0,0.00032271,2]
[400230307,1767207048523,-500.0,0.00032277,7]
[400230308,1767207048532,-151.0,0.00032313,31]
[400230309,1767207048542,-162.481751,0.00032313,31]
[400230310,1767207048552,-195.765928,0.00032313,31]
[400230311,1767207048562,-151.0,0.00032313,31]
[400230312,1767207048662,-151.0,0.00032313,31]
[400230313,1767207048673,-151.0,0.00032313,31]
[400230314,1767207048683,-272.0,0.0003232,2]
[400230315,1767207048692,-200.54705607,0.00032326,24]
[400230316,1767207048702,-1300.0,0.0003234,7]
[400230317,1767207048712,-1300.0,0.00032358,7]
[400230318,1767207048722,-5000.0,0.0003238,15]
[400230319,1767207048731,-500.0,0.00032421,7]
[400230320,1767207048741,-1300.0,0.00032439,7]
[400230321,1767207048751,-272.0,0.00032439,2]
[400230322,1767207048760,-242.47185193,0.00032457,7]
[400230323,1767207048770,-1318.46508754,0.00032467,7]
[400230324,1767207048780,-272.0,0.00032494,7]
[400230325,1767207048789,-500.0,0.0003254,7]
[400230326,1767207048799,-1035.01424902,0.00032578,2]
[400230327,1767207048809,-5000.0,0.000326,15]
[400230328,1767207048819,-5000.0,0.00032601,15]
[400230329,1767207048828,-956.2,0.00032602,33]
[400230330,1767207048838,-1266.6604661,0.00032619,2]
[400230331,1767207048848,-160.0,0.00032697,12]
[400230332,1767207048857,-12143.98,0.000327,2]
[400230333,1767207048867,-1324.78,0.000327,14]
[400230334,1767207048876,-5000.0,0.00032704,15]
[400230335,1767207048887,-3147.76375777,0.00032835,2]
[400230336,1767207048897,-5000.0,0.00032876,7]
[400230337,1767207048906,-5000.0,0.00032876,10]
[400230338,1767207048916,-5000.0,0.00032876,5]
[400230339,1767207048927,-5000.0,0.00032876,15]
[400230340,1767207048937,-5000.0,0.00032876,15]
[400230341,1767207048948,-644.76,0.00032877,10]
[400230342,1767207048958,-537.3,0.00032877,10]
[400230343,1767207048967,-447.75,0.00032877,10]
[400230344,1767207048976,-500.0,0.00032877,5]
[400230345,1767207048985,-150.0,0.00032877,5]
[400230346,1767207048995,-200.76587943,0.000329,120]
[400230347,1767207049004,-200.60301447,0.000329,120]
[400230348,1767207049013,-156.46,0.000329,7]
[400230349,1767207049022,-183.49170094,0.000329,120]
[400230350,1767207049031,-1430.86618739,0.000329,120]
[400230351,1767207049041,-5000.0,0.00032983,2]
[400230352,1767207049050,-177.0,0.00032986,57]
[400230353,1767207049059,-151.0,0.00032999,31]
[400230354,1767207049068,-151.0,0.00032999,31]
[400230355,1767207049078,-151.0,0.00032999,31]
[400230356,1767207049087,-151.0,0.00032999,31]
[400230357,1767207049096,-151.0,0.00032999,31]
[400230358,1767207049105,-151.0,0.00032999,31]
[400230359,1767207049114,-805.861522,0.00032999,31]
[400230360,1767207049124,-805.861522,0.00032999,31]
[400230361,1767207049134,-151.0,0.00032999,31]
[400230362,1767207049143,-805.861522,0.00032999,31]
[400230363,1767207049152,-151.0,0.00032999,31]
[400230364,1767207049162,-805.861522,0.00032999,31]
[400230365,1767207049172,-151.0,0.00032999,31]
[400230366,1767207049181,-1973.671944,0.00032999,31]
[400230367,1767207049190,-151.0,0.00032999,31]
[400230368,1767207049200,-1973.671944,0.00032999,31]
[400230369,1767207049210,-1973.671944,0.00032999,31]
[400230370,1767207049219,-1973.671944,0.00032999,31]
[400230371,1767207049228,-151.0,0.00032999,31]
[400230372,1767207049237,-227.124845,0.00032999,31]
[400230373,1767207049246,-227.124845,0.00032999,31]
[400230374,1767207049255,-227.124845,0.00032999,31]
[400230375,1767207049264,-227.124845,0.00032999,31]
[400230376,1767207049273,-1549.100689,0.00032999,31]
[400230377,1767207049282,-1549.100689,0.00032999,31]
[400230378,1767207049291,-1549.100689,0.00032999,31]
[400230379,1767207049300,-1549.100689,0.00032999,31]
[400230380,1767207049310,-230.54366,0.00032999,31]
[400230381,1767207049319,-230.54366,0.00032999,31]
[400230382,1767207049328,-230.54366,0.00032999,31]
[400230383,1767207049338,-5000.0,0.00032999,15]
[400230384,1767207049347,-5000.0,0.00032999,15]
[400230385,1767207049356,-230.54366,0.00032999,31]
[400230386,1767207049366,-151.0,0.00032999,20]
[400230387,1767207049375,-500.0,0.00032999,20]
[400230388,1767207049384,-500.0,0.00032999,20]
[400230389,1767207049393,-151.0,0.00032999,20]
[400230390,1767207049403,-500.0,0.00032999,20]
[400230391,1767207049413,-500.0,0.00032999,20]
[400230392,1767207049423,-500.0,0.00032999,20]
[400230393,1767207049432,-151.0,0.00032999,20]
[400230394,1767207049442,-500.0,0.00032999,20]
[400230395,1767207049452,-500.0,0.00032999,20]
[400230396,1767207049461,-151.0,0.00032999,20]
[400230397,1767207049471,-500.0,0.00032999,20]
[400230398,1767207049480,-500.0,0.00032999,20]
[400230399,1767207049490,-151.0,0.00032999,20]
[400230400,1767207049500,-250.0,0.00032999,20]
[400230401,1767207049510,-500.0,0.00032999,20]
[400230402,1767207049519,-500.0,0.00032999,20]
[400230403,1767207049529,-151.0,0.00032999,20]
[400230404,1767207049539,-246.84985962,0.00032999,20]
[400230405,1767207049548,-500.0,0.00032999,20]
[400230406,1767207049558,-500.0,0.00032999,20]
[400230407,1767207049568,-151.0,0.00032999,20]
[400230408,1767207049577,-250.0,0.00032999,20]
[400230409,1767207049587,-160.0,0.00032999,20]
[400230410,1767207049597,-500.0,0.00032999,20]
[400230411,1767207049607,-500.0,0.00032999,20]
[400230412,1767207049617,-151.0,0.00032999,20]
[400230413,1767207049628,-250.0,0.00032999,20]
[400230414,1767207049637,-160.0,0.00032999,20]
[400230415,1767207049647,-500.0,0.00032999,20]
[400230416,1767207049657,-500.0,0.00032999,20]
[400230417,1767207049666,-151.0,0.00032999,20]
[400230418,1767207049675,-250.0,0.00032999,20]
[400230419,1767207049685,-160.0,0.00032999,20]
[400230420,1767207049694,-500.0,0.00032999,20]
[400230421,1767207049703,-500.0,0.00032999,20]
[400230422,1767207049712,-151.0,0.00032999,20]
[400230423,1767207049721,-2312.83697232,0.00032999,20]
[400230424,1767207049731,-250.0,0.00032999,20]
[400230425,1767207049741,-160.0,0.00032999,20]
[400230426,1767207049751,-500.0,0.00032999,20]
[400230427,1767207049760,-500.0,0.00032999,20]
[400230428,1767207049769,-151.0,0.00032999,20]
[400230429,1767207049779,-2398.4119403,0.00032999,20]
[400230430,1767207049788,-250.0,0.00032999,20]
[400230431,1767207049798,-160.0,0.00032999,20]
[400230432,1767207049807,-500.0,0.00032999,20]
[400230433,1767207049817,-500.0,0.00032999,20]
[400230434,1767207049827,-151.0,0.00032999,20]
[400230435,1767207049837,-2487.15318209,0.00032999,20]
[400230436,1767207049847,-250.0,0.00032999,20]
[400230437,1767207049857,-478.75725327,0.00032999,20]
[400230438,1767207049866,-151.12503043,0.00032999,20]
[400230439,1767207049876,-500.0,0.00032999,20]
[400230440,1767207049887,-500.0,0.00032999,20]
[400230441,1767207049897,-2579.17784983,0.00032999,20]
[400230442,1767207049907,-151.0,0.00032999,20]
[400230443,1767207049916,-250.0,0.00032999,20]
[400230444,1767207049926,-496.47127164,0.00032999,20]
[400230445,1767207049936,-151.0,0.00032999,20]
[400230446,1767207049945,-468.16501574,0.00032999,20]
[400230447,1767207049958,-500.0,0.00032999,20]
[400230448,1767207049967,-1272.83319286,0.00032999,20]
[400230449,1767207049977,-151.0,0.00032999,20]
[400230450,1767207049986,-250.0,0.00032999,20]
[400230451,1767207049995,-514.84070869,0.00032999,20]
[400230452,1767207050005,-151.0,0.00032999,20]
[400230453,1767207050015,-250.0,0.00032999,20]
[400230454,1767207050025,-533.88981491,0.00032999,20]
[400230455,1767207050035,-151.0,0.00032999,20]
[400230456,1767207050045,-500.0,0.00032999,20]
[400230457,1767207050054,-151.0,0.00032999,20]
[400230458,1767207050064,-250.0,0.00032999,20]
[400230459,1767207050074,-553.64373807,0.00032999,20]
[400230460,1767207050083,-500.0,0.00032999,20]
[400230461,1767207050093,-196.9088468,0.00032999,20]
[400230462,1767207050102,-250.0,0.00032999,20]
[400230463,1767207050112,-574.12855637,0.00032999,20]
[400230464,1767207050122,-500.0,0.00032999,20]
[400230465,1767207050131,-250.0,0.00032999,20]
[400230466,1767207050141,-595.37131296,0.00032999,20]
[400230467,1767207050151,-250.0,0.00032999,20]
[400230468,1767207050160,-617.40005154,0.00032999,20]
[400230469,1767207050170,-250.0,0.00032999,20]
[400230470,1767207050180,-640.24385345,0.00032999,20]
[400230471,1767207050190,-663.93287602,0.00032999,20]
[400230472,1767207050200,-688.49839244,0.00032999,20]
[400230473,1767207050210,-174.61919142,0.00032999,20]
[400230474,1767207050219,-713.97283296,0.00032999,20]
[400230475,1767207050229,-151.0,0.00032999,31]
[400230476,1767207050238,-740.38982778,0.00032999,20]
[400230477,1767207050247,-767.7842514,0.00032999,20]
[400230478,1767207050256,-151.0,0.00032999,20]
[400230479,1767207050266,-796.19226871,0.00032999,20]
[400230480,1767207050275,-151.0,0.00032999,31]
[400230481,1767207050284,-825.65138265,0.00032999,20]
[400230482,1767207050294,-151.0,0.00032999,31]
[400230483,1767207050303,-250.0,0.00032999,20]
[400230484,1767207050313,-261.056405,0.00032999,31]
[400230485,1767207050322,-250.0,0.00032999,20]
[400230486,1767207050331,-250.0,0.00032999,20]
[400230487,1767207050341,-250.0,0.00032999,20]
[400230488,1767207050351,-250.0,0.00032999,20]
[400230489,1767207050361,-856.210546,0.00032999,31]
[400230490,1767207050371,-151.0,0.00032999,31]